bitfinex/quotes_ETHUSD_20250608
["timestamp","ask_amount","ask_price","bid_price","bid_amount"]
[1749422741279,4.72949799,2514.6,2514.1,3.97749082]
[1749422741645,4.72949799,2514.6,2514.0,8.05099477]
[1749422741851,4.72949799,2514.6,2514.1,3.97747995]
[1749422742075,3.97693734,2514.5,2514.0,8.05097221]
[1749422742650,0.7527,2514.6,2514.1,3.97742232]
[1749422742651,4.72948693,2514.6,2514.1,3.97742232]
[1749422743156,3.97694541,2514.5,2514.0,8.05094272]
[1749422743362,4.72956571,2514.6,2514.1,3.97755726]
[1749422744675,4.72956571,2514.6,2514.2,3.97740124]
[1749422745063,0.7527,2514.6,2514.2,3.97740124]
[1749422747387,0.7527,2514.6,2514.3,3.97722392]
[1749422749878,0.93383453,2514.5,2514.0,8.0509586]
[1749422750081,3.97694016,2514.5,2514.1,3.97753497]
[1749422750376,2.07070039,2514.6,2514.1,3.97748376]
[1749422750377,0.93382341,2514.4,2514.1,3.97748376]
[1749422750585,6.04755364,2514.6,2514.1,3.97748376]
[1749422750782,4.91101569,2514.5,2514.1,3.97748376]
[1749422750985,0.93408065,2514.4,2514.1,3.97748376]
[1749422751184,3.97693504,2514.5,2514.1,3.97748376]
[1749422751402,0.9340843,2514.4,2514.1,3.97748376]
[1749422751609,5.90461467,2514.5,2514.0,3.97767574]
[1749422751784,0.93442516,2514.4,2514.0,3.97767574]
[1749422751985,0.93442516,2514.3,2514.0,3.97767574]
[1749422752185,3.97693504,2514.5,2514.1,3.97755895]
[1749422752385,0.93443475,2514.4,2514.1,3.97755895]
[1749422752593,7.304,2514.3,2514.0,3.97771338]
[1749422752784,7.304,2514.3,2513.9,3.97782536]
[1749422752985,7.304,2514.3,2514.1,3.97753647]
[1749422753184,7.304,2514.3,2514.0,3.97766667]
[1749422756272,7.304,2514.3,2514.1,3.97753846]
[1749422757281,7.304,2514.3,2514.0,3.97763332]
[1749422757634,7.304,2514.3,2514.1,3.9775622]
[1749422758280,0.36443067,2514.8,2514.7,3.97661748]
[1749422758615,0.36443067,2514.8,2514.7,5.34262044]
[1749422759175,0.36443067,2514.8,2514.7,9.4159196]
[1749422759374,0.36443067,2514.8,2514.7,4.76991748]
[1749422759587,0.36443067,2514.8,2514.7,8.84321664]
[1749422759797,0.36443067,2514.8,2514.7,10.16456358]
[1749422765223,0.36443067,2514.8,2514.7,22.09126442]
[1749422766601,0.36443067,2514.8,2514.7,5.29796442]
[1749422766933,0.36443067,2514.8,2514.7,3.97661748]
[1749422767740,0.36443067,2514.8,2514.7,4.78941748]
[1749422776430,0.36443067,2514.8,2514.7,20.78941748]
[1749422781161,0.36443067,2514.8,2514.4,4.07329916]
[1749422781339,0.36443067,2514.8,2514.5,3.97691127]
[1749422781540,0.36443067,2514.8,2514.5,3.97687779]
[1749422781754,0.36443067,2514.8,2514.6,3.97662257]
[1749422781987,0.36443067,2514.8,2514.7,3.97661748]
[1749422784386,0.36443067,2514.8,2514.7,5.17928435]
[1749422785763,0.36443067,2514.8,2514.7,5.99568435]
[1749422787681,0.36443067,2514.8,2514.7,5.17928435]
[1749422790906,0.36443067,2514.8,2514.7,21.17928435]
[1749422795338,0.36443067,2514.8,2514.7,22.00308435]
[1749422796865,1.13429087,2515.7,2515.4,3.97551085]
[1749422797064,0.9349757,2515.6,2515.4,8.04881001]
[1749422797235,0.7691,2515.7,2515.6,3.97519478]
[1749422797435,0.7691,2515.7,2515.6,8.85334333]
[1749422797622,0.7691,2515.7,2515.6,8.04849394]
[1749422798762,0.7691,2515.7,2515.4,8.04876218]
[1749422798976,0.7691,2515.7,2515.0,4.07329916]
[1749422799164,0.7691,2515.7,2515.2,16.0]
[1749422799355,4.7441486,2515.7,2515.2,19.97575227]
[1749422799559,4.7441486,2515.7,2515.2,3.97575227]
[1749422800055,4.74414519,2515.7,2515.2,3.97574209]
[1749422800231,5.61603794,2515.7,2515.2,3.97574209]
[1749422800422,1.64099275,2515.7,2515.3,3.97566241]
[1749422800628,0.7691,2515.7,2515.3,3.97566241]
[1749422800963,0.93505655,2515.6,2515.2,3.97576895]
[1749422801267,4.74416906,2515.7,2515.3,3.97565696]
[1749422801268,0.7691,2515.7,2515.3,3.97565696]
[1749422803267,0.7691,2515.7,2515.1,3.97596295]
[1749422803569,1.24348388,2515.7,2515.3,3.9756639]
[1749422803928,1.24348388,2515.7,2515.4,3.9754785]
[1749422804229,1.24348388,2515.7,2515.3,3.97558539]
[1749422807994,1.76384432,2515.6,2515.2,3.975708]
[1749422808197,0.829,2515.6,2515.2,3.975708]
[1749422808663,0.829,2515.6,2515.2,3.97578672]
[1749422809089,0.829,2515.3,2514.4,4.7535835]
[1749422809274,0.829,2515.0,2514.5,3.97693378]
[1749422809488,0.829,2515.0,2514.7,3.97656984]
[1749422811307,5.28576066,2515.0,2514.5,3.97689175]
[1749422811461,12.03927333,2515.0,2514.5,3.97689175]
[1749422811797,12.03927333,2515.0,2514.4,24.05030502]
[1749422811999,3.97649964,2514.8,2514.2,4.07329916]
[1749422812172,0.829,2514.7,2514.4,3.97707838]
[1749422812894,0.829,2514.7,2514.4,8.05037754]
[1749422813396,0.829,2514.2,2513.6,0.7766]
[1749422813597,0.829,2514.2,2513.8,19.97790929]
[1749422813758,0.829,2514.2,2513.5,4.07329916]
[1749422813959,0.829,2514.2,2513.8,3.9779177]
[1749422814158,0.829,2514.2,2513.9,16.0]
[1749422814405,0.829,2514.2,2513.8,16.0]
[1749422814577,0.829,2514.2,2514.0,3.97764838]
[1749422814899,0.829,2514.2,2513.8,19.97788385]
[1749422815116,0.829,2514.2,2513.9,3.97788297]
[1749422816292,0.829,2514.2,2514.0,3.97771169]
[1749422818463,0.829,2514.2,2513.9,8.0511129]
[1749422819888,0.829,2514.2,2514.0,3.97771297]
[1749422820384,7.232,2514.3,2514.2,3.97740832]
[1749422820789,0.8246,2514.4,2514.1,8.05079379]
[1749422821122,7.226,2514.3,2514.1,8.05079379]
[1749422821287,0.8246,2514.4,2514.1,8.05079379]
[1749422821488,8.0496,2514.4,2514.1,8.05079379]
[1749422823727,7.223,2514.3,2514.2,3.977364]
[1749422824633,7.223,2514.3,2514.1,8.05079887]
[1749422825147,7.222,2514.3,2514.1,8.05079887]
[1749422827129,7.222,2514.3,2513.8,2.48563732]
[1749422827443,7.222,2514.3,2514.0,3.97770522]
[1749422827594,7.222,2514.3,2514.0,8.05100438]
[1749422828419,7.222,2514.3,2514.1,3.97755257]
[1749422829337,7.222,2514.3,2514.0,8.05094153]
[1749422830349,7.222,2514.3,2514.0,8.05094935]
[1749422830977,7.222,2514.3,2514.1,3.97754091]
[1749422831477,7.222,2514.3,2514.0,4.07329916]
[1749422831624,7.222,2514.3,2514.0,8.05094073]
[1749422836564,7.222,2514.3,2514.0,4.07329916]
[1749422837175,7.222,2514.3,2514.0,8.05100177]
[1749422838746,7.222,2514.3,2513.3,1.21991195]
[1749422838747,0.8295,2514.0,2513.3,1.21991195]
[1749422839083,0.8295,2514.0,2513.7,8.0514566]
[1749422839406,0.8295,2514.0,2513.7,4.07329916]
[1749422839957,0.8295,2514.0,2513.7,3.97817558]
[1749422840161,0.8295,2514.0,2513.6,4.07329916]
[1749422840402,3.97789724,2513.9,2513.4,4.07329916]
[1749422840612,3.97789724,2513.9,2513.4,8.05195821]
[1749422840956,3.97789724,2513.9,2513.2,4.07329916]
[1749422840957,3.97788297,2513.9,2513.2,4.07329916]
[1749422841152,3.97788297,2513.9,2513.0,3.97922304]
[1749422841153,0.8262,2513.4,2513.0,3.97922304]
[1749422841474,0.8262,2513.4,2513.1,8.05234579]
[1749422841688,0.8262,2513.4,2513.1,4.07329916]
[1749422841927,0.8262,2513.4,2513.1,8.05242592]
[1749422842094,0.8262,2513.4,2513.1,4.07329916]
[1749422842421,0.8262,2513.4,2513.1,8.05241032]
[1749422842619,7.204,2513.6,2513.2,4.07329916]
[1749422842756,12.00857559,2513.6,2513.2,4.07329916]
[1749422843258,7.204,2513.6,2513.1,3.97907067]
[1749422843466,0.8262,2513.5,2513.1,8.05236983]
[1749422843981,0.8262,2513.5,2513.2,3.97898016]
[1749422844181,0.8262,2513.5,2513.3,4.07329916]
[1749422851013,1.59911469,2513.9,2513.3,4.87852777]
[1749422851014,0.809,2513.9,2513.3,4.87852777]
[1749422851230,4.7865838,2514.1,2513.8,4.07329916]
[1749422851546,0.809,2514.1,2513.8,4.07329916]
[1749422851854,0.809,2514.1,2513.7,3.97816119]
[1749422852642,0.809,2514.1,2513.6,8.05164126]
[1749422852842,8.002,2514.1,2513.8,4.07329916]
[1749422853048,11.97958351,2514.1,2513.8,4.07329916]
[1749422853198,11.9795876,2514.1,2513.8,4.07329916]
[1749422853405,11.9795876,2514.1,2513.6,4.07329916]
[1749422853845,7.192,2514.0,2513.5,0.806]
[1749422854027,3.97808324,2513.8,2513.4,4.07329916]
[1749422854354,4.78695433,2513.9,2513.4,8.05196983]
[1749422854543,4.7869006,2513.9,2513.4,8.05189488]
[1749422854711,4.78697074,2513.9,2513.4,8.05189488]
[1749422855299,3.97805116,2513.8,2513.4,8.05189488]
[1749422855500,0.809,2513.7,2513.0,4.07329916]
[1749422855739,0.8167,2513.5,2512.9,3.97937074]
[1749422856050,3.9787066,2513.4,2512.9,3.97937074]
[1749422856539,4.79527944,2513.5,2513.0,3.9793031]
[1749422856979,3.9787152,2513.4,2512.9,19.97939578]
[1749422857102,4.77624854,2513.3,2512.9,16.0]
[1749422857498,11.16699092,2513.2,2512.6,4.07329916]
[1749422857705,3.97923011,2513.1,2512.6,8.05323337]
[1749422857943,0.7974,2513.0,2512.6,8.05322475]
[1749422858500,0.7974,2513.0,2512.3,0.7504]
[1749422858840,3.97947305,2512.9,2512.4,20.35843916]
[1749422858999,3.97947305,2512.9,2512.4,24.33861836]
[1749422859206,4.77677095,2513.0,2512.5,3.98009221]
[1749422860342,4.77677095,2513.0,2512.5,3.98007426]
[1749422860643,4.77677095,2513.0,2512.4,8.33861892]
[1749422860797,4.77677095,2513.0,2512.5,3.98009011]
[1749422861204,5.32140783,2512.8,2512.2,3.98042907]
[1749422861416,7.185,2512.7,2512.3,3.98038973]
[1749422861846,7.184,2512.6,2512.3,3.98038973]
[1749422862699,7.184,2512.6,2512.2,3.98049227]
[1749422862905,7.184,2512.6,2512.3,3.98038788]
[1749422863115,7.184,2512.6,2512.2,8.05382213]
[1749422863457,7.184,2512.6,2512.3,3.98041139]
[1749422864143,7.184,2512.6,2512.2,8.05379645]
[1749422864557,7.184,2512.6,2512.2,3.98049729]
[1749422864773,0.8025,2512.5,2512.2,3.98049729]
[1749422865710,0.8025,2512.5,2512.0,16.0]
[1749422865844,0.8025,2512.5,2512.1,3.98063937]
[1749422866349,0.8025,2512.5,2512.1,8.05393853]
[1749422866561,0.8025,2512.5,2512.2,3.98056469]
[1749422866793,6.08048567,2512.9,2512.4,3.98016719]
[1749422866794,0.7861,2512.9,2512.4,3.98016719]
[1749422866945,7.18,2512.8,2512.7,4.07329916]
[1749422867352,7.18,2512.8,2512.7,8.05308186]
[1749422867587,7.18,2512.8,2512.7,4.07329916]
[1749422868500,0.7861,2512.9,2512.7,4.07329916]
[1749422868800,7.178,2512.8,2512.5,8.05338014]
[1749422868972,7.178,2512.8,2512.6,3.97990578]
[1749422869293,7.178,2512.9,2512.7,4.07329916]
[1749422869873,7.177,2512.9,2512.7,8.05306798]
[1749422870894,7.177,2512.9,2512.7,4.07329916]
[1749422871504,7.175,2512.9,2512.7,4.07329916]
[1749422872611,7.174,2512.9,2512.7,4.07329916]
[1749422873407,7.174,2512.9,2512.1,16.0]
[1749422873408,0.7662,2512.8,2511.9,0.3990413]
[1749422873571,3.97980343,2512.7,2512.2,3.98049306]
[1749422875105,3.97980343,2512.7,2512.2,8.05379222]
[1749422875979,0.7662,2512.5,2512.1,3.98065187]
[1749422876199,7.171,2512.4,2512.1,3.98065187]
[1749422876812,7.171,2512.4,2512.1,5.1841324]
[1749422877621,7.171,2512.4,2512.1,1.20348053]
[1749422877912,7.171,2512.4,2512.1,5.18419255]
[1749422878711,7.168,2512.5,2512.2,4.88249916]
[1749422878920,7.168,2512.5,2512.4,4.07329916]
[1749422879120,7.168,2512.5,2512.4,8.05355708]
[1749422879306,7.168,2512.5,2512.4,4.07329916]
[1749422880079,7.168,2512.5,2512.2,4.88249916]
[1749422880279,7.168,2512.5,2512.2,8.05378187]
[1749422880480,7.168,2512.5,2512.3,3.98040386]
[1749422880914,7.168,2512.5,2512.2,4.07329916]
[1749422881096,7.168,2512.5,2512.2,8.05379303]
[1749422882281,7.168,2512.5,2512.2,9.33816388]
[1749422882821,0.8158,2512.4,2511.8,4.46894064]
[1749422883022,0.8158,2512.4,2511.9,16.0]
[1749422883239,4.79610997,2512.4,2511.9,16.0]
[1749422883436,3.98082094,2512.1,2511.3,7.9929]
[1749422883584,7.163,2512.1,2511.8,3.98120289]
[1749422883785,7.163,2512.1,2511.9,3.98104814]
[1749422883984,0.8158,2512.2,2511.9,4.07329916]
[1749422884185,7.163,2512.1,2510.4,0.8299]
[1749422884383,7.163,2512.1,2510.7,4.07329916]
[1749422884384,0.8158,2511.5,2510.7,4.07329916]
[1749422884634,7.162,2511.4,2510.7,4.07329916]
[1749422884934,7.162,2511.4,2510.9,3.98249703]
[1749422885145,11.14386913,2511.4,2510.9,3.98249703]
[1749422885290,11.14386913,2511.4,2510.7,8.05620148]
[1749422885291,3.98206204,2511.3,2510.6,16.0]
[1749422885489,3.98206204,2511.3,2510.8,3.98278983]
[1749422885689,12.94819734,2511.4,2510.7,3.9829097]
[1749422885925,11.1438765,2511.4,2510.7,3.9829097]
[1749422886290,0.7717,2511.3,2510.8,3.98269906]
[1749422887199,0.7717,2511.3,2510.9,3.98261705]
[1749422887603,0.7717,2511.3,2510.7,3.982845]
[1749422887934,0.7717,2511.3,2510.3,0.8055]
[1749422887935,3.98222016,2511.2,2510.3,0.8055]
[1749422888237,3.98222016,2511.2,2510.6,3.98296134]
[1749422888753,3.98247856,2511.0,2510.5,3.98316516]
[1749422888900,7.16,2510.9,2510.6,3.98310415]
[1749422889101,7.16,2510.9,2510.7,3.98294646]
[1749422889325,7.16,2510.9,2510.4,0.57892285]
[1749422889326,7.16,2510.9,2510.4,8.89273481]
[1749422889535,0.7806,2511.1,2510.8,3.98279432]
[1749422889694,7.159,2511.0,2510.8,3.98279432]
[1749422889919,7.159,2510.9,2510.8,3.98279432]
[1749422890714,0.7806,2511.1,2510.8,3.98279432]
[1749422890912,7.159,2511.0,2510.9,3.98260358]
[1749422892002,7.159,2511.0,2510.8,3.98273051]
[1749422892437,7.157,2510.9,2510.8,3.98273051]
[1749422893244,7.156,2510.9,2510.8,3.98273051]
[1749422895167,7.94966,2510.9,2510.2,1.0]
[1749422895365,0.8331,2510.8,2510.2,1.0]
[1749422895631,7.155,2510.7,2510.3,3.98349962]
[1749422895846,0.8331,2510.8,2510.3,8.31381196]
[1749422896043,7.154,2510.8,2510.6,8.31381196]
[1749422896267,0.7891,2511.2,2510.9,3.98258703]
[1749422896577,7.154,2511.1,2510.9,3.9826226]
[1749422897177,7.154,2511.1,2510.8,3.98271976]
[1749422897344,7.154,2511.1,2510.8,3.98272506]
[1749422897749,7.153,2511.1,2510.9,3.98255375]
[1749422898869,0.7891,2511.2,2511.0,3.9824771]
[1749422899079,0.7962,2512.1,2510.9,8.31381196]
[1749422899277,3.98145774,2511.7,2511.2,8.31381196]
[1749422899452,0.7949,2511.6,2511.2,12.29596462]
[1749422899834,0.7949,2511.6,2511.3,3.98198837]
[1749422900034,0.7949,2511.6,2511.4,3.98182783]
[1749422900233,7.9459,2511.6,2511.4,3.98182783]
[1749422900472,0.7949,2511.6,2511.3,3.98192112]
[1749422900983,7.15,2511.5,2511.3,3.98192112]
[1749422901149,7.15,2511.5,2511.2,12.29590011]
[1749422901352,7.15,2511.5,2511.3,3.98199614]
[1749422901554,7.15,2511.5,2511.4,3.98178945]
[1749422902669,7.15,2511.5,2511.3,3.9819236]
[1749422902875,7.15,2511.5,2511.4,3.98184279]
[1749422903375,7.15,2511.5,2511.2,12.29590338]
[1749422903541,7.15,2511.5,2511.3,3.98193695]
[1749422904162,7.15,2511.5,2511.4,3.98184279]
[1749422904568,7.15,2511.5,2511.3,3.98191701]
[1749422904769,0.7676,2511.8,2511.3,3.98191701]
[1749422904970,7.146,2511.5,2511.3,3.98191701]
[1749422905376,7.146,2511.5,2511.4,3.98184279]
[1749422905574,7.146,2511.5,2511.3,8.06257]
[1749422905950,7.146,2511.5,2511.4,3.98184279]
[1749422906746,0.7676,2511.8,2511.4,3.98184279]
[1749422907088,7.144,2511.7,2511.4,3.98184279]
[1749422909560,7.144,2511.7,2511.3,8.06255962]
[1749422913721,4.74881833,2511.8,2511.3,8.06255962]
[1749422913929,0.7703,2512.1,2511.5,4.08064007]
[1749422914089,0.93422837,2512.0,2511.7,8.06198069]
[1749422914295,7.136,2511.9,2511.7,3.98134062]
[1749422914825,7.136,2511.9,2511.5,8.06223767]
[1749422915214,11.11707443,2511.9,2511.4,3.9817828]
[1749422915812,7.136,2511.9,2511.4,3.98175493]
[1749422916032,11.11713849,2511.9,2511.4,3.98175493]
[1749422916723,11.11713849,2511.9,2511.3,9.34658467]
[1749422916724,7.136,2511.9,2511.5,3.98167496]
[1749422916925,11.11708938,2511.9,2511.4,3.98177]
[1749422917243,7.136,2511.9,2511.5,3.98167771]
[1749422918030,11.11705392,2511.9,2511.4,3.98174794]
[1749422918199,4.74941422,2511.8,2511.4,3.98174794]
[1749422918405,0.7682,2511.8,2511.2,0.795]
[1749422918638,7.136,2511.9,2510.9,4.08064007]
[1749422918800,3.98192695,2511.4,2510.9,3.98250978]
[1749422919000,0.7682,2511.2,2510.9,3.98250978]
[1749422919206,0.7682,2511.2,2511.0,16.0]
[1749422919733,0.7682,2511.2,2510.6,0.7551]
[1749422919890,0.7682,2511.2,2510.9,3.98262009]
[1749422920095,0.7682,2511.2,2510.7,16.0]
[1749422920345,4.75043165,2511.2,2510.7,21.86394929]
[1749422920713,0.7682,2511.2,2510.8,3.98279229]
[1749422920951,4.75038605,2511.2,2510.7,19.98289279]
[1749422921417,0.7682,2511.2,2510.8,3.98263672]
[1749422922425,3.98244837,2511.1,2510.6,19.9830181]
[1749422922609,3.98239979,2511.1,2510.6,19.98302946]
[1749422922950,3.98239979,2511.1,2510.6,19.98302094]
[1749422923321,4.74691251,2510.9,2510.4,3.98332577]
[1749422923536,7.127,2510.8,2510.3,3.98350368]
[1749422923838,11.1098697,2510.8,2510.3,3.98350368]
[1749422924192,11.1098697,2510.8,2510.3,3.98357505]
[1749422924394,7.127,2510.8,2510.2,19.9836933]
[1749422924635,7.127,2510.8,2510.3,16.0]
[1749422924856,11.10981351,2510.8,2510.3,3.98349501]
[1749422925073,1.3789,2510.7,2509.0,0.8183]
[1749422925224,1.3789,2510.7,2509.5,4.08064007]
[1749422925225,0.8289,2510.4,2509.5,4.08064007]
[1749422925540,0.8289,2510.4,2509.3,1.21681908]
[1749422925541,7.126,2510.3,2509.9,3.98418166]
[1749422926355,3.9848004,2509.6,2508.7,2.58393116]
[1749422926666,7.126,2509.5,2509.3,4.08064007]
[1749422926820,1.93490321,2510.2,2509.5,4.08064007]
[1749422926821,0.8328,2510.0,2509.5,4.08064007]
[1749422927160,7.125,2509.9,2509.8,8.06502129]
[1749422927774,0.8328,2510.5,2509.8,4.08064007]
[1749422927920,0.8328,2510.5,2510.1,8.06450464]
[1749422928120,7.124,2510.4,2510.1,8.06451645]
[1749422928318,0.8328,2510.5,2510.2,3.9837138]
[1749422928544,7.124,2510.4,2510.1,4.08064007]
[1749422928713,0.8328,2510.5,2510.1,8.06446546]
[1749422928937,7.124,2510.4,2510.1,8.06446546]
[1749422929443,0.8328,2510.5,2510.1,9.26935409]
[1749422929628,0.8328,2510.5,2510.2,3.98363283]
[1749422929629,7.124,2510.4,2510.2,3.98363283]
[1749422930455,7.124,2510.4,2510.1,4.08064007]
[1749422930954,7.124,2510.4,2510.2,3.98373511]
[1749422931160,7.124,2510.4,2510.1,8.06447277]
[1749422931562,3.98374811,2510.2,2509.1,4.76323699]
[1749422931757,3.98374811,2510.2,2509.3,4.08064007]
[1749422931758,6.04780479,2510.2,2509.3,4.08064007]
[1749422931964,0.8328,2510.1,2509.5,3.98482842]
[1749422932136,7.121,2510.0,2509.5,3.98482842]
[1749422932361,11.10507466,2510.0,2509.5,3.98482842]
[1749422933146,1.3828,2509.9,2509.1,0.7778]
[1749422933345,7.121,2509.8,2509.4,8.06549763]
[1749422933565,7.121,2509.8,2509.4,8.06557607]
[1749422934297,7.121,2509.8,2509.4,4.08064007]
[1749422934498,7.121,2509.8,2509.1,0.7778]
[1749422934499,12.90404226,2509.8,2509.1,16.0]
[1749422934647,3.98475924,2509.6,2509.1,16.0]
[1749422934847,4.81768829,2509.5,2509.0,4.08064007]
[1749422935073,7.12,2509.4,2509.0,4.08064007]
[1749422935457,7.12,2509.4,2509.0,8.06624064]
[1749422936390,11.10510878,2509.4,2508.9,16.0]
[1749422936693,3.9852734,2509.3,2508.9,16.0]
[1749422937059,12.12889891,2509.4,2508.8,16.0]
[1749422937354,4.7997259,2509.2,2508.8,16.0]
[1749422937560,0.8143,2509.2,2508.7,2.58393116]
[1749422937746,0.8143,2509.2,2508.7,6.56996234]
[1749422937747,4.79972507,2509.2,2508.7,6.56996234]
[1749422937950,0.8143,2509.2,2508.7,6.56996234]
[1749422938282,0.8143,2509.2,2508.8,4.08064007]
[1749422938781,4.79964868,2509.2,2508.8,4.08064007]
[1749422939283,3.98552309,2509.1,2508.8,4.08064007]
[1749422939585,7.118,2509.0,2508.7,2.58393116]
[1749422940336,7.118,2509.0,2507.6,1.0]
[1749422940337,0.8143,2508.9,2507.6,1.0]
[1749422940504,0.8143,2508.9,2506.4,1.197292]
[1749422940505,3.02793908,2506.8,2504.6,12.79486623]
[1749422940704,0.55,2507.2,2504.4,4.29421653]
[1749422940705,4.191,2505.7,2504.4,4.29421653]
[1749422940911,4.191,2505.5,2503.3,4.69189377]
[1749422941109,23.831,2505.6,2504.1,4.08064007]
[1749422941432,23.831,2505.6,2503.3,4.69189377]
[1749422941433,0.7938,2505.0,2504.4,4.08064007]
[1749422941611,0.7938,2505.0,2503.6,4.08064007]
[1749422941612,0.33089861,2504.9,2504.1,4.08064007]
[1749422941939,3.993,2504.4,2504.1,4.08064007]
[1749422942140,16.0,2504.7,2504.1,4.08064007]
[1749422942141,19.99295672,2504.5,2504.1,4.48870408]
[1749422942336,16.0,2504.7,2504.1,0.40806401]
[1749422942337,3.99305608,2504.4,2504.1,0.40806401]
[1749422942537,4.78590349,2505.0,2504.1,0.40806401]
[1749422942538,16.0,2504.5,2504.1,0.40806401]
[1749422942722,1.3438,2505.0,2504.2,4.08064007]
[1749422942723,8.065,2504.6,2504.2,4.08064007]
[1749422942922,8.065,2504.6,2503.8,4.08064007]
[1749422943339,8.065,2504.6,2503.9,3.99372662]
[1749422943539,0.91465558,2504.9,2504.1,8.35692291]
[1749422943754,0.91465558,2504.9,2504.2,4.82892675]
[1749422943916,0.55,2505.0,2504.3,8.35692291]
[1749422944111,16.91476504,2505.3,2504.3,8.35692291]
[1749422944312,16.91476504,2505.3,2504.2,25.1926152]
[1749422944313,9.06076504,2505.2,2504.2,25.1926152]
[1749422944518,8.146,2505.2,2504.3,2.59576152]
[1749422944721,0.55,2505.1,2504.3,2.59576152]
[1749422944950,3.99214174,2505.0,2504.3,2.59576152]
[1749422945133,0.55,2505.1,2504.3,2.59576152]
[1749422945342,8.146,2505.2,2504.3,10.95268443]
[1749422945637,8.179,2505.4,2504.7,16.0]
[1749422946447,8.179,2505.4,2504.5,16.0]
[1749422946640,0.91045337,2505.3,2504.5,16.0]
[1749422946844,8.179,2505.4,2504.4,2.69526844]
[1749422946845,3.99215935,2505.0,2504.4,2.69526844]
[1749422947044,3.99191313,2505.1,2504.1,0.765]
[1749422947278,0.9089248,2505.0,2504.1,13.11525322]
[1749422947436,0.90765376,2504.9,2504.1,9.12192291]
[1749422947635,8.208,2505.0,2504.3,16.0]
[1749422948376,0.90784484,2504.9,2504.3,16.0]
[1749422948671,8.208,2505.0,2504.4,12.34979147]
[1749422948878,1.16731492,2505.3,2504.6,3.99261341]
[1749422949186,0.90700258,2505.2,2504.7,3.99248848]
[1749422949330,8.212,2505.3,2504.6,17.23495363]
[1749422949525,0.90659078,2505.2,2504.7,3.99238584]
[1749422949725,0.90659078,2505.1,2504.6,5.22756182]
[1749422949936,9.37931492,2505.4,2504.6,21.22756182]
[1749422950158,0.90650118,2505.3,2504.7,18.12275618]
[1749422950323,0.90650118,2505.2,2504.7,18.12275618]
[1749422950524,0.90650118,2505.1,2504.7,18.12275618]
[1749422950835,9.38431492,2505.4,2504.7,30.47202396]
[1749422951160,0.90624006,2505.3,2504.8,3.17069776]
[1749422951365,0.90624006,2505.2,2504.8,3.17069776]
[1749422951520,8.217,2505.4,2504.8,3.17069776]
[1749422951726,0.90615326,2505.3,2504.8,3.17069776]
[1749422951926,0.90615326,2505.2,2504.8,3.17069776]
[1749422952161,8.217,2505.4,2504.8,3.17069776]
[1749422952466,0.9061033,2505.3,2504.8,3.17069776]
[1749422952628,0.9061033,2505.2,2504.7,16.0]
[1749422952829,8.217,2505.4,2504.7,16.0]
[1749422953030,0.90625395,2505.3,2504.7,16.0]
[1749422953355,0.90625395,2505.2,2504.7,18.51530369]
[1749422953557,0.90625395,2505.1,2504.7,18.51530369]
[1749422953722,13.37569996,2505.4,2504.7,18.51530369]
[1749422953931,4.89812148,2505.3,2504.7,16.39254844]
[1749422954258,0.90652176,2505.2,2504.7,16.39254844]
[1749422954464,0.90652176,2505.1,2504.7,0.39254844]
[1749422954669,4.89887394,2505.0,2504.2,5.17136999]
[1749422954965,9.13274994,2504.9,2504.2,3.00677524]
[1749422955262,0.90674994,2504.8,2504.2,17.82868601]
[1749422955470,0.90674994,2504.7,2504.2,17.82868601]
[1749422955635,8.246,2504.8,2504.2,17.82868601]
[1749422955839,0.90666009,2504.7,2504.2,17.82868601]
[1749422956028,8.246,2504.8,2504.2,21.82197359]
[1749422956365,0.90660892,2504.7,2504.2,21.82197359]
[1749422956530,8.246,2504.8,2504.2,21.82197359]
[1749422956724,8.246,2504.8,2504.2,23.00006282]
[1749422956725,0.90678113,2504.7,2504.2,23.00006282]
[1749422956966,8.246,2504.8,2504.2,23.3949489]
[1749422957270,0.90673665,2504.7,2504.2,23.3949489]
[1749422957455,0.90685519,2504.6,2504.2,22.21685967]
[1749422957659,8.246,2504.8,2504.2,22.21685967]
[1749422957860,0.90693608,2504.7,2504.2,22.21685967]
[1749422958161,8.246,2504.8,2504.2,22.21685967]
[1749422958366,0.90688801,2504.7,2504.2,22.21685967]
[1749422958594,0.90688801,2504.6,2504.2,22.21685967]
[1749422958795,8.246,2504.8,2504.3,3.99308342]
[1749422958970,0.90714295,2504.7,2504.6,28.34957642]
[1749422959288,8.239,2505.2,2504.7,3.99245994]
[1749422959491,0.90787954,2505.1,2504.7,3.99245994]
[1749422959655,0.90787954,2505.0,2504.7,3.99245994]
[1749422959858,0.90787954,2504.9,2504.7,3.99247572]
[1749422960081,3.99195877,2505.1,2504.6,16.0]
[1749422960277,4.90044303,2505.0,2504.6,16.0]
[1749422960561,1.55641989,2505.3,2504.6,16.0]
[1749422960562,0.90842707,2504.9,2504.7,3.99249411]
[1749422960772,0.90842707,2504.8,2504.6,19.99251906]
[1749422961109,9.43831492,2505.1,2504.7,3.99245929]
[1749422961264,0.90950418,2505.0,2504.7,3.99245929]
[1749422961465,0.90950418,2504.9,2504.7,3.99245929]
[1749422961686,0.90950418,2504.8,2504.6,19.99257796]
[1749422961893,0.90950418,2504.7,2504.3,18.29818597]
[1749422962090,13.81935869,2505.1,2504.5,16.0]
[1749422962091,0.90950418,2504.6,2504.5,16.0]
[1749422962395,0.90950418,2504.6,2504.3,3.99309399]
[1749422962605,1.16731492,2504.7,2504.5,3.99281293]
[1749422962764,0.9119626,2504.6,2504.5,3.99281293]
[1749422963103,0.9119626,2504.6,2504.3,3.99313098]
[1749422963262,0.9119626,2504.5,2504.4,3.99296336]
[1749422963866,2.05380544,2504.5,2504.4,3.99297236]
[1749422964395,2.46838249,2504.5,2504.4,3.99297236]
[1749422964562,2.46838249,2504.5,2504.4,5.01395145]
[1749422964762,0.9119626,2504.5,2504.4,5.01395145]
[1749422964996,2.46838249,2504.5,2504.4,5.69797544]
[1749422965202,0.9119626,2504.5,2504.4,21.69797544]
[1749422965405,2.46838249,2504.5,2504.4,21.69797544]
[1749422965702,2.44001574,2504.5,2504.4,21.01395145]
[1749422966076,2.05807358,2504.5,2504.4,21.01395145]